[Event "*** Titled Tuesday Blitz"]
[Site "Chess.com"]
[Date "2018.12.04"]
[Round "2"]
[White "Alopekos"]
[Black "Panchenko_Dmitry"]
[Result "1/2-1/2"]
[WhiteElo "2481"]
[BlackElo "2535"]
[TimeControl "180+2"]
[EndTime "13:24:10 PST"]
[Termination "Game drawn by repetition"]

1. e4 {[%clk 0:03:01.9]} 1... e5 {[%clk 0:02:59.7]} 2. Nf3 {[%clk 0:03:02.6]}
2... Nf6 {[%clk 0:03:00.6]} 3. Nxe5 {[%clk 0:03:02]} 3... d6 {[%clk 0:03:01.3]}
4. Nf3 {[%clk 0:03:03.4]} 4... Nxe4 {[%clk 0:03:01.9]} 5. Nc3 {[%clk 0:03:05]}
5... Nxc3 {[%clk 0:03:02.3]} 6. dxc3 {[%clk 0:03:06.9]} 6... Be7 {[%clk
0:03:03.5]} 7. Bf4 {[%clk 0:03:07.8]} 7... O-O {[%clk 0:03:03.1]} 8. Qd2 {[%clk
0:03:08.8]} 8... Nd7 {[%clk 0:02:53.2]} 9. O-O-O {[%clk 0:03:07.1]} 9... Nc5
{[%clk 0:02:53.1]} 10. Nd4 {[%clk 0:03:00.9]} 10... Bf6 {[%clk 0:02:46.7]} 11.
f3 {[%clk 0:03:01.1]} 11... a5 {[%clk 0:02:41.4]} 12. g4 {[%clk 0:02:59.8]}
12... Ne6 {[%clk 0:02:31.4]} 13. Be3 {[%clk 0:02:40]} 13... a4 {[%clk
0:02:26.9]} 14. a3 {[%clk 0:02:35.7]} 14... Nxd4 {[%clk 0:02:10.7]} 15. cxd4
{[%clk 0:02:34.6]} 15... d5 {[%clk 0:02:11.7]} 16. h4 {[%clk 0:02:12.2]} 16...
Re8 {[%clk 0:02:06.5]} 17. g5 {[%clk 0:02:12.3]} 17... Be7 {[%clk 0:02:07.2]}
18. Bd3 {[%clk 0:02:13.1]} 18... Bd6 {[%clk 0:02:02]} 19. h5 {[%clk 0:02:07.3]}
19... Qe7 {[%clk 0:02:00.5]} 20. Rde1 {[%clk 0:02:08.4]} 20... g6 {[%clk
0:01:23.1]} 21. Bf4 {[%clk 0:01:38.3]} 21... Be6 {[%clk 0:01:18]} 22. Qh2 {[%clk
0:01:09.7]} 22... Bxf4+ {[%clk 0:01:06.9]} 23. Qxf4 {[%clk 0:01:11.6]} 23... Qd6
{[%clk 0:01:07.4]} 24. Qh4 {[%clk 0:00:34]} 24... Bf5 {[%clk 0:00:59.6]} 25.
hxg6 {[%clk 0:00:04.7]} 25... Bxg6 {[%clk 0:00:59.5]} 26. f4 {[%clk 0:00:06]}
26... Bxd3 {[%clk 0:00:52.8]} 27. cxd3 {[%clk 0:00:07.9]} 27... Qg6 {[%clk
0:00:53.7]} 28. Qh3 {[%clk 0:00:03.8]} 28... Rad8 {[%clk 0:00:40.5]} 29. Kc2
{[%clk 0:00:02.2]} 29... Rxe1 {[%clk 0:00:18.8]} 30. Rxe1 {[%clk 0:00:04.1]}
30... Qc6+ {[%clk 0:00:18.6]} 31. Kb1 {[%clk 0:00:04.8]} 31... Re8 {[%clk
0:00:19.8]} 32. Re5 {[%clk 0:00:04.5]} 32... Rxe5 {[%clk 0:00:19.5]} 33. dxe5
{[%clk 0:00:06.4]} 33... Qe6 {[%clk 0:00:19.7]} 34. Qe3 {[%clk 0:00:05.1]} 34...
Qf5 {[%clk 0:00:18.4]} 35. Kc2 {[%clk 0:00:05.8]} 35... b6 {[%clk 0:00:18.5]}
36. Qd4 {[%clk 0:00:05.7]} 36... Qd7 {[%clk 0:00:15.8]} 37. Kd2 {[%clk
0:00:03.4]} 37... b5 {[%clk 0:00:14.7]} 38. Qa7 {[%clk 0:00:03.3]} 38... Kg7
{[%clk 0:00:15.1]} 39. Qd4 {[%clk 0:00:03.4]} 39... Kg6 {[%clk 0:00:14.4]} 40.
Qc5 {[%clk 0:00:03.1]} 40... Qf5 {[%clk 0:00:13.5]} 41. Qe3 {[%clk 0:00:03]}
41... c5 {[%clk 0:00:13.2]} 42. Qf3 {[%clk 0:00:03.8]} 42... c4 {[%clk
0:00:09.9]} 43. Qxd5 {[%clk 0:00:04]} 43... Qxf4+ {[%clk 0:00:10.4]} 44. Kc3
{[%clk 0:00:05.3]} 44... cxd3 {[%clk 0:00:10.9]} 45. Qxd3+ {[%clk 0:00:06.2]}
45... Kxg5 {[%clk 0:00:11.3]} 46. Qxb5 {[%clk 0:00:05.8]} 46... Qe3+ {[%clk
0:00:11.3]} 47. Kb4 {[%clk 0:00:04.4]} 47... Kf5 {[%clk 0:00:08.3]} 48. Kxa4
{[%clk 0:00:03.6]} 48... Qe4+ {[%clk 0:00:05.6]} 49. b4 {[%clk 0:00:03.9]} 49...
Qa8+ {[%clk 0:00:04.7]} 50. Kb3 {[%clk 0:00:04.3]} 50... Qf3+ {[%clk 0:00:06.6]}
51. Ka4 {[%clk 0:00:04.5]} 51... Qa8+ {[%clk 0:00:07.3]} 52. Qa5 {[%clk
0:00:04.1]} 52... Qc6+ {[%clk 0:00:08]} 53. Qb5 {[%clk 0:00:05.4]} 53... Qa8+
{[%clk 0:00:08.7]} 54. Qa5 {[%clk 0:00:06.3]} 54... Qc6+ {[%clk 0:00:09.6]} 55.
b5 {[%clk 0:00:07.8]} 55... Qc2+ {[%clk 0:00:09.5]} 56. Kb4 {[%clk 0:00:09.2]}
56... Qd2+ {[%clk 0:00:10.5]} 57. Ka4 {[%clk 0:00:10.7]} 57... Qc2+ {[%clk
0:00:11.4]} 58. Kb4 {[%clk 0:00:12.2]} 58... Qd2+ {[%clk 0:00:12.6]} 59. Ka4
{[%clk 0:00:13.5]} 59... Qc2+ {[%clk 0:00:13.8]} 60. Kb4 {[%clk 0:00:14.6]}
60... Qd2+ {[%clk 0:00:14.8]} 1/2-1/2

[Event "*** Titled Tuesday Blitz"]
[Site "Chess.com"]
[Date "2018.12.04"]
[Round "2"]
[White "StanislavNovikov"]
[Black "Berardino"]
[Result "0-1"]
[WhiteElo "2466"]
[BlackElo "2401"]
[TimeControl "180+2"]
[EndTime "13:24:11 PST"]
[Termination "Berardino won by resignation"]

1. g3 {[%clk 0:03:01.9]} 1... d5 {[%clk 0:02:59.9]} 2. Bg2 {[%clk 0:03:02.5]}
2... c6 {[%clk 0:03:00.8]} 3. d3 {[%clk 0:03:02.7]} 3... e5 {[%clk 0:03:00.9]}
4. Nd2 {[%clk 0:03:02.9]} 4... Nf6 {[%clk 0:03:00.8]} 5. c3 {[%clk 0:03:03.8]}
5... Be7 {[%clk 0:03:00.8]} 6. Qc2 {[%clk 0:03:04.5]} 6... O-O {[%clk
0:03:01.6]} 7. Ngf3 {[%clk 0:03:05.6]} 7... Qc7 {[%clk 0:02:59.7]} 8. O-O {[%clk
0:03:06.2]} 8... Re8 {[%clk 0:03:00]} 9. b3 {[%clk 0:03:05]} 9... Bf8 {[%clk
0:03:00]} 10. e4 {[%clk 0:03:05.5]} 10... dxe4 {[%clk 0:03:01.1]} 11. dxe4
{[%clk 0:03:06.3]} 11... a5 {[%clk 0:03:01.8]} 12. a3 {[%clk 0:03:06.6]} 12...
b6 {[%clk 0:02:57.3]} 13. Bb2 {[%clk 0:03:07.3]} 13... Ba6 {[%clk 0:02:55.7]}
14. Rfe1 {[%clk 0:03:08.1]} 14... Nbd7 {[%clk 0:02:56.6]} 15. b4 {[%clk
0:03:08.2]} 15... axb4 {[%clk 0:02:46.2]} 16. cxb4 {[%clk 0:03:06.8]} 16... c5
{[%clk 0:02:41.8]} 17. a4 {[%clk 0:02:43.7]} 17... b5 {[%clk 0:02:07.6]} 18. Bf1
{[%clk 0:02:14.2]} 18... Qb7 {[%clk 0:01:16.2]} 19. bxc5 {[%clk 0:01:06.4]}
19... Bxc5 {[%clk 0:01:15.3]} 20. Nb3 {[%clk 0:01:03.6]} 20... Bf8 {[%clk
0:00:40.9]} 21. axb5 {[%clk 0:00:56.7]} 21... Bxb5 {[%clk 0:00:41.1]} 22. Rxa8
{[%clk 0:00:57.7]} 22... Rxa8 {[%clk 0:00:39.3]} 23. Nxe5 {[%clk 0:00:53.6]}
23... Bxf1 {[%clk 0:00:38.9]} 24. Nxd7 {[%clk 0:00:47.2]} 24... Nxd7 {[%clk
0:00:37.5]} 25. Kxf1 {[%clk 0:00:38.9]} 25... Rb8 {[%clk 0:00:38.4]} 26. Re3
{[%clk 0:00:39.6]} 26... h5 {[%clk 0:00:25.6]} 27. Kg1 {[%clk 0:00:34.7]} 27...
h4 {[%clk 0:00:25.8]} 28. Bd4 {[%clk 0:00:24.8]} 28... h3 {[%clk 0:00:26]} 29.
Nd2 {[%clk 0:00:24.2]} 29... Qa6 {[%clk 0:00:21.2]} 30. Nf1 {[%clk 0:00:17.4]}
30... Rc8 {[%clk 0:00:21.3]} 31. Rc3 {[%clk 0:00:16.5]} 31... Re8 {[%clk
0:00:20.7]} 32. f3 {[%clk 0:00:11.4]} 32... Qd6 {[%clk 0:00:18.6]} 33. Bf2
{[%clk 0:00:10]} 33... Ne5 {[%clk 0:00:18.1]} 34. Qe2 {[%clk 0:00:08.3]} 34...
Qf6 {[%clk 0:00:18.4]} 35. Rb3 {[%clk 0:00:05.8]} 35... Rd8 {[%clk 0:00:18.8]}
36. f4 {[%clk 0:00:06.3]} 36... Nc6 {[%clk 0:00:18.9]} 37. e5 {[%clk 0:00:06.9]}
37... Qf5 {[%clk 0:00:19.8]} 38. Qf3 {[%clk 0:00:07.5]} 38... Ne7 {[%clk
0:00:19.6]} 39. Qe2 {[%clk 0:00:05]} 39... Ng6 {[%clk 0:00:19.9]} 40. Qf3 {[%clk
0:00:03.8]} 40... Be7 {[%clk 0:00:20]} 41. Be3 {[%clk 0:00:04.2]} 41... Qe6
{[%clk 0:00:20.8]} 42. f5 {[%clk 0:00:04.5]} 42... Qxb3 {[%clk 0:00:21.8]} 43.
fxg6 {[%clk 0:00:05.7]} 43... fxg6 {[%clk 0:00:23.7]} 44. Qg4 {[%clk 0:00:05.1]}
44... Rf8 {[%clk 0:00:24.2]} 45. Qxh3 {[%clk 0:00:05.9]} 45... Qd5 {[%clk
0:00:24.8]} 46. Qg2 {[%clk 0:00:06.2]} 46... Qc4 {[%clk 0:00:25.3]} 47. h4
{[%clk 0:00:04.5]} 47... Bc5 {[%clk 0:00:25.8]} 48. Bxc5 {[%clk 0:00:04.7]}
48... Qxc5+ {[%clk 0:00:27.7]} 49. Kh1 {[%clk 0:00:05.5]} 49... Qxe5 {[%clk
0:00:29.2]} 50. Nh2 {[%clk 0:00:06.1]} 50... Qe1+ {[%clk 0:00:29.9]} 51. Qg1
{[%clk 0:00:07.3]} 51... Qe4+ {[%clk 0:00:30]} 52. Qg2 {[%clk 0:00:08.6]} 52...
Qb1+ {[%clk 0:00:30.8]} 53. Qg1 {[%clk 0:00:09.8]} 53... Qb3 {[%clk 0:00:32]}
54. Kg2 {[%clk 0:00:10.2]} 54... Qd5+ {[%clk 0:00:32.1]} 55. Kh3 {[%clk
0:00:10.8]} 55... Rc8 {[%clk 0:00:32.4]} 56. Ng4 {[%clk 0:00:11.4]} 56... Qf5
{[%clk 0:00:33.2]} 57. Qe3 {[%clk 0:00:11.5]} 57... Rc4 {[%clk 0:00:32]} 58. Qe2
{[%clk 0:00:09.8]} 58... Re4 {[%clk 0:00:32.9]} 59. Qd1 {[%clk 0:00:09.9]} 59...
Kh7 {[%clk 0:00:32.9]} 60. Kg2 {[%clk 0:00:03.1]} 60... Qxg4 {[%clk 0:00:33.7]}
61. Qd3 {[%clk 0:00:03]} 0-1

[Event "*** Titled Tuesday Blitz"]
[Site "Chess.com"]
[Date "2018.12.04"]
[Round "2"]
[White "Hrant_ChessMood"]
[Black "Samuray111"]
[Result "1-0"]
[WhiteElo "2943"]
[BlackElo "2601"]
[TimeControl "180+2"]
[EndTime "13:24:23 PST"]
[Termination "Hrant_ChessMood won by resignation"]

1. e4 {[%clk 0:02:59.8]} 1... c6 {[%clk 0:02:59.6]} 2. d4 {[%clk 0:02:57]} 2...
d5 {[%clk 0:03:00.2]} 3. exd5 {[%clk 0:02:58.9]} 3... cxd5 {[%clk 0:03:01]} 4.
Nf3 {[%clk 0:03:00.8]} 4... Nf6 {[%clk 0:03:01.7]} 5. c3 {[%clk 0:03:00.4]} 5...
Nc6 {[%clk 0:02:58.8]} 6. Bf4 {[%clk 0:02:59.3]} 6... Qb6 {[%clk 0:02:53.3]} 7.
Qb3 {[%clk 0:02:57.9]} 7... Bg4 {[%clk 0:02:51.3]} 8. Nbd2 {[%clk 0:02:56.9]}
8... e6 {[%clk 0:02:51.7]} 9. Bb5 {[%clk 0:02:44.1]} 9... Bxf3 {[%clk
0:02:50.6]} 10. Nxf3 {[%clk 0:02:44.4]} 10... Be7 {[%clk 0:02:51.2]} 11. Ne5
{[%clk 0:02:43.1]} 11... Rc8 {[%clk 0:02:47.1]} 12. O-O {[%clk 0:02:27.4]} 12...
O-O {[%clk 0:02:47.2]} 13. Rfe1 {[%clk 0:02:24.1]} 13... Nxe5 {[%clk 0:02:44.7]}
14. Bxe5 {[%clk 0:02:24.9]} 14... a6 {[%clk 0:02:40.6]} 15. Bd3 {[%clk
0:02:24.9]} 15... Qxb3 {[%clk 0:02:41.1]} 16. axb3 {[%clk 0:02:26.8]} 16... Ne8
{[%clk 0:02:26]} 17. Bf4 {[%clk 0:02:16.3]} 17... Nd6 {[%clk 0:02:24]} 18. g3
{[%clk 0:02:14.3]} 18... Rc6 {[%clk 0:02:21.9]} 19. Kg2 {[%clk 0:02:10.3]} 19...
g6 {[%clk 0:02:21.6]} 20. h4 {[%clk 0:02:10.1]} 20... h5 {[%clk 0:02:20.7]} 21.
Re2 {[%clk 0:02:06]} 21... Rb6 {[%clk 0:02:16.7]} 22. Bc2 {[%clk 0:01:57.8]}
22... Rc8 {[%clk 0:02:16.4]} 23. f3 {[%clk 0:01:57.6]} 23... Rbc6 {[%clk
0:02:12.3]} 24. Rh1 {[%clk 0:01:56.4]} 24... Nf5 {[%clk 0:02:10.8]} 25. Bd3
{[%clk 0:01:50.6]} 25... Bd6 {[%clk 0:01:41.5]} 26. Bxd6 {[%clk 0:01:35.8]}
26... Rxd6 {[%clk 0:01:42.2]} 27. g4 {[%clk 0:01:35]} 27... Ng7 {[%clk
0:01:43.4]} 28. Kg3 {[%clk 0:01:34.7]} 28... Kf8 {[%clk 0:01:43.9]} 29. Rhe1
{[%clk 0:01:27.5]} 29... Rb6 {[%clk 0:01:39.9]} 30. b4 {[%clk 0:01:28.2]} 30...
Ke7 {[%clk 0:01:36.3]} 31. Ra1 {[%clk 0:01:24.1]} 31... Rh8 {[%clk 0:01:35.9]}
32. Ra5 {[%clk 0:01:22.8]} 32... Ne8 {[%clk 0:01:33.2]} 33. Rxd5 {[%clk
0:01:21.5]} 33... hxg4 {[%clk 0:01:26.4]} 34. fxg4 {[%clk 0:01:21.4]} 34... Nd6
{[%clk 0:01:24]} 35. Rc5 {[%clk 0:01:21.1]} 35... Kd7 {[%clk 0:01:24]} 36. Rce5
{[%clk 0:01:07.1]} 36... Ne8 {[%clk 0:01:01.6]} 37. d5 {[%clk 0:01:03.8]} 37...
Nc7 {[%clk 0:01:02.7]} 38. dxe6+ {[%clk 0:01:02.5]} 38... Rxe6 {[%clk
0:01:04.5]} 39. Bc4 {[%clk 0:01:01.5]} 39... Rxe5 {[%clk 0:01:03.5]} 40. Rxe5
{[%clk 0:01:03.4]} 40... f6 {[%clk 0:01:01.4]} 41. Re2 {[%clk 0:01:03.8]} 41...
Kd6 {[%clk 0:00:52.6]} 42. Bf7 {[%clk 0:01:04.2]} 42... g5 {[%clk 0:00:52.3]}
43. h5 {[%clk 0:01:05.4]} 43... Rh7 {[%clk 0:00:53.5]} 44. Bg6 {[%clk
0:01:04.1]} 44... Rh8 {[%clk 0:00:54.5]} 45. Bf5 {[%clk 0:01:04.2]} 45... Nd5
{[%clk 0:00:55.6]} 46. Re6+ {[%clk 0:01:03.9]} 46... Kc7 {[%clk 0:00:56.9]} 47.
Kf3 {[%clk 0:01:04.8]} 47... b5 {[%clk 0:00:53.6]} 48. Be4 {[%clk 0:00:59]}
48... Nf4 {[%clk 0:00:48.2]} 49. Rxf6 {[%clk 0:00:59.4]} 49... Rd8 {[%clk
0:00:47.2]} 50. h6 {[%clk 0:00:55.8]} 50... Kd7 {[%clk 0:00:42.9]} 51. h7 {[%clk
0:00:54.5]} 51... Ke7 {[%clk 0:00:44.4]} 52. Rxa6 {[%clk 0:00:55]} 52... Rh8
{[%clk 0:00:45.6]} 53. Rb6 {[%clk 0:00:54.7]} 53... Kf7 {[%clk 0:00:45.8]} 54.
Rxb5 {[%clk 0:00:55.6]} 54... Kg7 {[%clk 0:00:47.1]} 55. Rxg5+ {[%clk
0:00:56.5]} 55... Kh6 {[%clk 0:00:48.3]} 56. Kxf4 {[%clk 0:00:53.7]} 56... Rf8+
{[%clk 0:00:49.2]} 57. Bf5 {[%clk 0:00:51.3]} 57... Rh8 {[%clk 0:00:46.1]} 58.
Rg8 {[%clk 0:00:47]} 58... Rxg8 {[%clk 0:00:46.5]} 59. g5+ {[%clk 0:00:44]}
59... Kh5 {[%clk 0:00:44.6]} 60. Bg4+ {[%clk 0:00:41.5]} 60... Kh4 {[%clk
0:00:42.9]} 61. Be6 {[%clk 0:00:40.8]} 61... Rf8+ {[%clk 0:00:42.1]} 62. Ke5
{[%clk 0:00:32.5]} 62... Kxg5 {[%clk 0:00:34]} 63. Bg8 {[%clk 0:00:33.3]} 63...
Rf5+ {[%clk 0:00:35.2]} 64. Kd6 {[%clk 0:00:34.6]} 64... Rf6+ {[%clk 0:00:36.4]}
65. Kc7 {[%clk 0:00:36.1]} 65... Rh6 {[%clk 0:00:38.1]} 66. b5 {[%clk
0:00:37.6]} 66... Kf6 {[%clk 0:00:38.9]} 67. b6 {[%clk 0:00:38.6]} 67... Kg7
{[%clk 0:00:39.3]} 68. b7 {[%clk 0:00:39.7]} 68... Kh8 {[%clk 0:00:36]} 69. b8=Q
{[%clk 0:00:39.2]} 69... Rf6 {[%clk 0:00:37]} 70. Bd5+ {[%clk 0:00:38.5]} 70...
Kg7 {[%clk 0:00:36.7]} 71. h8=Q+ {[%clk 0:00:38.7]} 71... Kg6 {[%clk 0:00:37.7]}
72. Qbe8+ {[%clk 0:00:39.5]} 72... Kf5 {[%clk 0:00:38.6]} 73. Qh3+ {[%clk
0:00:38.9]} 1-0

[Event "*** Titled Tuesday Blitz"]
[Site "Chess.com"]
[Date "2018.12.04"]
[Round "2"]
[White "SARGISMV"]
[Black "enriquetejedor"]
[Result "1/2-1/2"]
[WhiteElo "2420"]
[BlackElo "2523"]
[TimeControl "180+2"]
[EndTime "13:24:25 PST"]
[Termination "Game drawn - insufficient material"]

1. d4 {[%clk 0:02:59]} 1... Nf6 {[%clk 0:03:00.7]} 2. c4 {[%clk 0:02:59.9]} 2...
e6 {[%clk 0:02:59.3]} 3. Nc3 {[%clk 0:03:00.3]} 3... d5 {[%clk 0:03:00.9]} 4.
cxd5 {[%clk 0:02:59.9]} 4... exd5 {[%clk 0:03:02.8]} 5. Bg5 {[%clk 0:03:00.8]}
5... c6 {[%clk 0:03:04.7]} 6. e3 {[%clk 0:03:01.9]} 6... Be7 {[%clk 0:03:06.3]}
7. Bd3 {[%clk 0:03:02.2]} 7... O-O {[%clk 0:03:07.9]} 8. Nf3 {[%clk 0:03:02.9]}
8... Nbd7 {[%clk 0:03:09]} 9. Qc2 {[%clk 0:03:03.6]} 9... Re8 {[%clk 0:03:10.1]}
10. O-O {[%clk 0:03:04.4]} 10... Nf8 {[%clk 0:03:10.9]} 11. h3 {[%clk
0:03:05.3]} 11... g6 {[%clk 0:03:12.3]} 12. Rab1 {[%clk 0:03:03.1]} 12... Ne6
{[%clk 0:03:13.2]} 13. Bh4 {[%clk 0:03:01.9]} 13... Ng7 {[%clk 0:03:13.9]} 14.
b4 {[%clk 0:03:02.3]} 14... a6 {[%clk 0:03:14.2]} 15. a4 {[%clk 0:03:02.7]}
15... Bf5 {[%clk 0:03:14.6]} 16. Bxf5 {[%clk 0:03:01.9]} 16... Nxf5 {[%clk
0:03:16.5]} 17. Bxf6 {[%clk 0:03:02.7]} 17... Bxf6 {[%clk 0:03:18.4]} 18. b5
{[%clk 0:03:03.7]} 18... axb5 {[%clk 0:03:20.3]} 19. axb5 {[%clk 0:03:05.5]}
19... Rc8 {[%clk 0:03:20.6]} 20. bxc6 {[%clk 0:03:05.7]} 20... bxc6 {[%clk
0:03:22.5]} 21. Na4 {[%clk 0:03:00.1]} 21... Rxe3 {[%clk 0:03:15.8]} 22. fxe3
{[%clk 0:02:52.9]} 22... Nxe3 {[%clk 0:03:17.7]} 23. Qd3 {[%clk 0:02:44.2]}
23... Nxf1 {[%clk 0:03:18.9]} 24. Rxf1 {[%clk 0:02:46.1]} 24... Qd6 {[%clk
0:03:18.3]} 25. Nc5 {[%clk 0:02:34.6]} 25... Re8 {[%clk 0:03:18.7]} 26. Re1
{[%clk 0:02:22]} 26... Rxe1+ {[%clk 0:03:18.1]} 27. Nxe1 {[%clk 0:02:22.6]}
27... Kg7 {[%clk 0:03:12.6]} 28. Qe3 {[%clk 0:02:16.5]} 28... h6 {[%clk
0:03:08.1]} 29. Nf3 {[%clk 0:02:16.3]} 29... Qg3 {[%clk 0:03:08.3]} 30. Nd3
{[%clk 0:02:13.1]} 30... Qb8 {[%clk 0:03:04.3]} 31. Nfe5 {[%clk 0:02:08]} 31...
Qb1+ {[%clk 0:03:02.6]} 32. Kh2 {[%clk 0:02:06.8]} 32... Qb8 {[%clk 0:03:04.2]}
33. Qf4 {[%clk 0:01:56.4]} 33... Qc7 {[%clk 0:02:49]} 34. h4 {[%clk 0:01:32.3]}
34... Qd6 {[%clk 0:02:36.2]} 35. Nc5 {[%clk 0:01:26.7]} 35... Qe7 {[%clk
0:02:03.6]} 36. Nxc6 {[%clk 0:01:13.3]} 36... Qe1 {[%clk 0:02:02.7]} 37. Ne5
{[%clk 0:01:13.9]} 37... Qxh4+ {[%clk 0:01:57.4]} 38. Qxh4 {[%clk 0:01:14.5]}
38... Bxh4 {[%clk 0:01:59.3]} 39. Ncd3 {[%clk 0:01:07]} 39... Bf6 {[%clk
0:01:35.6]} 40. Nf4 {[%clk 0:01:03.9]} 40... Bxe5 {[%clk 0:01:28.9]} 41. dxe5
{[%clk 0:01:05.7]} 41... d4 {[%clk 0:01:27.8]} 42. Kg3 {[%clk 0:01:03.9]} 42...
f6 {[%clk 0:01:22.1]} 43. e6 {[%clk 0:00:52.8]} 43... g5 {[%clk 0:01:04.6]} 44.
Nd5 {[%clk 0:00:40.4]} 44... f5 {[%clk 0:01:05.6]} 45. Kf3 {[%clk 0:00:39]}
45... h5 {[%clk 0:01:02.2]} 46. Ke2 {[%clk 0:00:36.9]} 46... h4 {[%clk
0:00:58.8]} 47. Kd3 {[%clk 0:00:35.7]} 47... f4 {[%clk 0:00:51.1]} 48. Kxd4
{[%clk 0:00:27.2]} 48... f3 {[%clk 0:00:46]} 49. Ke3 {[%clk 0:00:15.1]} 49...
fxg2 {[%clk 0:00:38.7]} 50. Kf2 {[%clk 0:00:14.2]} 50... h3 {[%clk 0:00:39.2]}
51. Kg1 {[%clk 0:00:15.1]} 51... g4 {[%clk 0:00:36.5]} 52. Kh2 {[%clk
0:00:14.4]} 52... Kf8 {[%clk 0:00:35.2]} 53. Ne3 {[%clk 0:00:08]} 53... g3+
{[%clk 0:00:32.6]} 54. Kg1 {[%clk 0:00:08.2]} 54... Ke7 {[%clk 0:00:33.9]} 55.
Nf5+ {[%clk 0:00:07.9]} 55... Kxe6 {[%clk 0:00:35.4]} 56. Nxg3 {[%clk
0:00:09.8]} 56... Ke5 {[%clk 0:00:37.1]} 57. Ne2 {[%clk 0:00:09.1]} 57... Ke4
{[%clk 0:00:38.3]} 58. Kh2 {[%clk 0:00:10.3]} 58... Ke3 {[%clk 0:00:38.4]} 59.
Ng1 {[%clk 0:00:12.1]} 59... Kf2 {[%clk 0:00:38.4]} 60. Nxh3+ {[%clk 0:00:14]}
60... Kf3 {[%clk 0:00:39.7]} 61. Ng1+ {[%clk 0:00:15.2]} 61... Kf2 {[%clk
0:00:41]} 62. Nh3+ {[%clk 0:00:16.5]} 62... Kf1 {[%clk 0:00:42.5]} 63. Ng1
{[%clk 0:00:17.9]} 63... Kf2 {[%clk 0:00:44]} 64. Nh3+ {[%clk 0:00:19.2]} 64...
Ke3 {[%clk 0:00:45.1]} 65. Kxg2 {[%clk 0:00:20.2]} 1/2-1/2

[Event "*** Titled Tuesday Blitz"]
[Site "Chess.com"]
[Date "2018.12.04"]
[Round "2"]
[White "LawrenceTrent"]
[Black "Grieve72"]
[Result "1-0"]
[WhiteElo "2472"]
[BlackElo "2315"]
[TimeControl "180+2"]
[EndTime "13:24:38 PST"]
[Termination "LawrenceTrent won by resignation"]

1. e4 {[%clk 0:03:01.9]} 1... d6 {[%clk 0:03:00.9]} 2. d4 {[%clk 0:03:01.5]}
2... Nf6 {[%clk 0:03:02.4]} 3. Nc3 {[%clk 0:03:03.4]} 3... Nbd7 {[%clk
0:03:03.7]} 4. Nf3 {[%clk 0:03:04.1]} 4... e5 {[%clk 0:03:05.1]} 5. g4 {[%clk
0:03:05.5]} 5... d5 {[%clk 0:03:05.4]} 6. exd5 {[%clk 0:02:57.4]} 6... e4 {[%clk
0:03:04.3]} 7. Nd2 {[%clk 0:02:56.3]} 7... Bb4 {[%clk 0:02:49.9]} 8. g5 {[%clk
0:02:53.3]} 8... Bxc3 {[%clk 0:02:46]} 9. bxc3 {[%clk 0:02:54.4]} 9... Nxd5
{[%clk 0:02:46.3]} 10. Nxe4 {[%clk 0:02:49.5]} 10... Qe7 {[%clk 0:02:31]} 11.
Qe2 {[%clk 0:02:27.1]} 11... O-O {[%clk 0:02:30.9]} 12. c4 {[%clk 0:02:28.1]}
12... Re8 {[%clk 0:02:23.1]} 13. cxd5 {[%clk 0:02:26]} 13... Qxe4 {[%clk
0:02:22.3]} 14. Qxe4 {[%clk 0:02:26.1]} 14... Rxe4+ {[%clk 0:02:24.2]} 15. Be3
{[%clk 0:02:27.5]} 15... Nb6 {[%clk 0:02:17.5]} 16. Bd3 {[%clk 0:02:18.1]} 16...
Re7 {[%clk 0:02:03.1]} 17. c4 {[%clk 0:02:18.8]} 17... Bh3 {[%clk 0:01:59.9]}
18. Rg1 {[%clk 0:02:19.2]} 18... Rae8 {[%clk 0:01:41.2]} 19. Kd2 {[%clk
0:02:19.9]} 19... Nc8 {[%clk 0:01:33.6]} 20. c5 {[%clk 0:02:14.7]} 20... Rd8
{[%clk 0:01:04.5]} 21. Rg3 {[%clk 0:02:15.2]} 21... Bd7 {[%clk 0:01:00.7]} 22.
h4 {[%clk 0:02:11.6]} 22... Ba4 {[%clk 0:00:48.7]} 23. Rb1 {[%clk 0:01:58.4]}
23... b6 {[%clk 0:00:40.5]} 24. Bc4 {[%clk 0:01:56.7]} 24... bxc5 {[%clk
0:00:33.6]} 25. dxc5 {[%clk 0:01:57.5]} 25... Bc6 {[%clk 0:00:35.1]} 26. Kc3
{[%clk 0:01:01.2]} 26... Bxd5 {[%clk 0:00:29.9]} 27. Bxd5 {[%clk 0:01:01]} 27...
Rxd5 {[%clk 0:00:31.8]} 28. Rb8 {[%clk 0:01:02.3]} 28... Re8 {[%clk 0:00:27.9]}
29. Rg4 {[%clk 0:01:03]} 29... Kf8 {[%clk 0:00:22.6]} 30. Ra4 {[%clk 0:00:56.2]}
30... Ne7 {[%clk 0:00:16.5]} 31. Rxe8+ {[%clk 0:00:55.3]} 31... Kxe8 {[%clk
0:00:18.4]} 32. Rxa7 {[%clk 0:00:56.3]} 32... Kd7 {[%clk 0:00:20]} 33. Kc4
{[%clk 0:00:55.2]} 33... Rd1 {[%clk 0:00:19.2]} 34. Bf4 {[%clk 0:00:55.6]} 34...
Nd5 {[%clk 0:00:17.7]} 35. Be5 {[%clk 0:00:45.9]} 35... f6 {[%clk 0:00:16.6]}
36. gxf6 {[%clk 0:00:45.1]} 36... gxf6 {[%clk 0:00:18.5]} 37. Bd4 {[%clk
0:00:45.6]} 37... Ne7 {[%clk 0:00:06.3]} 38. Bxf6 {[%clk 0:00:40.4]} 38... Nc6
{[%clk 0:00:07.9]} 39. Ra3 {[%clk 0:00:40.9]} 39... Ke6 {[%clk 0:00:05]} 40. Bg5
{[%clk 0:00:36.7]} 40... Rf1 {[%clk 0:00:04.4]} 41. f4 {[%clk 0:00:32.5]} 41...
Rc1+ {[%clk 0:00:03.6]} 42. Rc3 {[%clk 0:00:32.6]} 42... Ra1 {[%clk 0:00:04]}
43. a3 {[%clk 0:00:32.5]} 43... Rd1 {[%clk 0:00:03.4]} 44. Kb5 {[%clk
0:00:26.3]} 44... Kd5 {[%clk 0:00:04]} 45. f5 {[%clk 0:00:21.2]} 45... Nd4+
{[%clk 0:00:04.6]} 46. Ka6 {[%clk 0:00:21.2]} 46... Nxf5 {[%clk 0:00:06.2]} 47.
Kb7 {[%clk 0:00:21.1]} 47... c6 {[%clk 0:00:07.6]} 48. Rb3 {[%clk 0:00:21]}
48... Nd4 {[%clk 0:00:08.3]} 49. Rc3 {[%clk 0:00:19]} 49... Rf1 {[%clk
0:00:05.9]} 50. a4 {[%clk 0:00:18.7]} 50... Rf7+ {[%clk 0:00:06.6]} 51. Kb6
{[%clk 0:00:19.8]} 51... Ne6 {[%clk 0:00:02.8]} 52. a5 {[%clk 0:00:19.8]} 52...
Nf8 {[%clk 0:00:02.5]} 53. a6 {[%clk 0:00:19.8]} 53... Nd7+ {[%clk 0:00:03.9]}
54. Ka5 {[%clk 0:00:21.3]} 54... Nxc5 {[%clk 0:00:05]} 55. Be3 {[%clk
0:00:20.3]} 55... Ne4 {[%clk 0:00:05.3]} 56. Rb3 {[%clk 0:00:21.4]} 56... Nd6
{[%clk 0:00:05.1]} 57. Rd3+ {[%clk 0:00:20.9]} 57... Ke6 {[%clk 0:00:06.2]} 58.
Kb6 {[%clk 0:00:21.2]} 58... Nc4+ {[%clk 0:00:03.7]} 59. Kc5 {[%clk 0:00:22.3]}
59... Na5 {[%clk 0:00:03.5]} 60. Ra3 {[%clk 0:00:21.8]} 60... Nb7+ {[%clk
0:00:02.7]} 61. axb7 {[%clk 0:00:22.3]} 61... Rxb7 {[%clk 0:00:04.6]} 62. Kxc6
{[%clk 0:00:23.7]} 62... Rb4 {[%clk 0:00:06.4]} 63. Bg5 {[%clk 0:00:24.4]} 63...
h6 {[%clk 0:00:06.5]} 64. Re3+ {[%clk 0:00:22.5]} 64... Kf5 {[%clk 0:00:07.3]}
65. Be7 {[%clk 0:00:23.5]} 65... h5 {[%clk 0:00:04]} 66. Bxb4 {[%clk 0:00:23.9]}
1-0